Cogmind - Beta 15 @@@ ROGUE MODE // 2025.08.17 @ 17:00:47 Player: SnailSD Result: Self-destructed Performance ------------- Evolutions (2) 1000 Regions Visited (3) 600 Robots Destroyed (18) 90 Value Destroyed (280) 280 Prototype IDs (0) 0 Alien Tech Used (0) 0 Bonus (0) 0 TOTAL SCORE: 1970 Bonus ------- None Cogmind --------- Core Integrity 498/550 Matter 238/300 Energy 250/250 System Corruption 5% Temperature Hot (220) Movement Treading (240) Ox1 Location -8/Materials Parts ------- > --- POWER (1) -------- Ion Engine > --- PROPULSION (4) --- Light Treads Light Treads > --- UTILITY (4) ------ High-capacity Storage Unit > --- WEAPON (2) ------- Subdweller Laser > --- INVENTORY (20) --- Ion Engine Ion Engine Ion Engine Ion Engine Aluminum Leg Wheel Compact Wheel Small Storage Unit High-capacity Storage Unit Improved Terrain Scanner Tractor Beam Light Assault Rifle Light Cannon Grenade Launcher Grenade Launcher Mining Laser Peak State ------------ > --- POWER ------------ Ion Engine > --- PROPULSION ------- Light Treads Light Treads Light Treads > --- UTILITY ---------- High-capacity Storage Unit Scrap Shield Tractor Beam > --- WEAPON ----------- EM Pulse Gun Subdweller Laser > --- INVENTORY -------- Ion Engine Ion Engine Ion Engine Ion Engine Aluminum Leg Wheel Compact Wheel Small Storage Unit High-capacity Storage Unit Improved Terrain Scanner Light Assault Rifle Light Cannon Light Cannon Grenade Launcher Grenade Launcher Mining Laser [Rating: 14] Favorites ----------- Power Ion Engine Engine Ion Engine Propulsion Light Treads Treads Light Treads Utility Improved Terrain Scanner Device Improved Terrain Scanner Storage High-capacity Storage Unit Protection Scrap Shield Weapon EM Pulse Gun Energy Gun EM Pulse Gun Ballistic Gun Light Assault Rifle Ballistic Cannon Light Cannon Build | -11 -10 -10 -8 ------- Run | Yrd Mat Sub Mat Slots Evolved 4 | . . . 4 Power . | . . . . Propulsion 2 | . . . 2 Utility 2 | . . . 2 Weapon . | . . . . Parts Attached 15 | 8 3 1 3 Power 2 | 2 . . . Engine 2 | 2 . . . Core . | . . . . Reactor . | . . . . Propulsion 3 | 2 . . 1 Treads 3 | 2 . . 1 Leg . | . . . . Wheel . | . . . . Hover . | . . . . Flight . | . . . . Utility 5 | 2 1 . 2 Device 2 | 1 . . 1 Storage 2 | 1 1 . . Processor . | . . . . Hackware . | . . . . Protection 1 | . . . 1 Artifact . | . . . . Weapon 5 | 2 2 1 . Energy Gun 2 | 1 . 1 . Energy Cannon . | . . . . Ballistic Gun 1 | 1 . . . Ballistic Cannon 2 | . 2 . . Launcher . | . . . . Special Weapon . | . . . . Impact Weapon . | . . . . Slashing Weapon . | . . . . Piercing Weapon . | . . . . Special Melee Weapon . | . . . . Unidentified Prototypes . | . . . . Corrupted Parts 1 | . . . 1 System Corruption 5 | . . . 5 Parts Lost 3 | . . . 3 Power . | . . . . Propulsion 1 | . . . 1 Utility 1 | . . . 1 Weapon 1 | . . . 1 Highest Loss Streak 3 | . . . 3 To Critical Strikes . | . . . . Average Backups 13 | 4 14 19 16 Power 2 | . 2 4 4 Propulsion 3 | 1 3 4 3 Utility 3 | . 3 4 4 Weapon 4 | 1 4 7 5 Tool/Special . | . . . . Unused Backups 17 | . 2 2 13 Power 5 | . 1 . 4 Propulsion 3 | . . . 3 Utility 3 | . 1 . 2 Weapon 6 | . . 2 4 Tool/Special . | . . . . Average Slot Usage (%) 92 | . 99 91 71 Engine 12 | . 14 14 9 Treads 27 | . 28 28 27 Device 10 | . 14 8 . Storage 12 | . 14 14 9 Protection 2 | . . . 8 Energy Gun 14 | . 13 22 16 Ballistic Gun 9 | . 13 2 . Ballistic Cannon 1 | . 1 . 1 Peak Build Rating 14 | 10 11 12 14 Average Rating 10 | 6 10 10 12 On Entrance 7 | . 10 11 9 Naked Turns . | . . . . Heaviest Build 70 | 14 52 52 70 Greatest Support 60 | 40 40 40 60 Greatest Overweight (x) 1 | . 1 1 1 Average Overweight (x) . | . . 1 . Largest Inventory Capacity 20 | 8 20 20 20 Average Capacity 15 | 7 16 20 20 Most Carried 20 | 8 20 20 19 Average Carried 13 | 4 14 19 16 Final Capacity 20 | 8 20 20 20 Final Carried 20 | 8 20 20 16 Class Distribution -------------------- 100% | Mutant Dominant Class ---------------- Mutant | -10/Materials Mutant | -10/Subcaves Mutant | -8/Materials Resources | -11 -10 -10 -8 ----------- Run | Yrd Mat Sub Mat Matter Collected 384 | 286 86 . 12 Remotely . | . . . . Salvage Created 723 | 173 410 . 140 Parts 37 | 13 20 . 4 Haulers Intercepted 2 | . 2 . . Recyclers Shooed 3 | . 3 . . Parts Field Recycled . | . . . . Retrieved Matter . | . . . . Parts Self-Destructed . | . . . . Prevented . | . . . . Kills | -11 -10 -10 -8 ------- Run | Yrd Mat Sub Mat Combat Hostiles Destroyed 7 | . 4 . 3 Guns 6 | . 4 . 2 Cannons 1 | . . . 1 Classes Destroyed 8 | 2 4 . 2 Worker 1 | . . . 1 Tunneler 3 | 3 . . . Hauler 2 | . 2 . . Recycler 4 | 1 3 . . Watcher 1 | . 1 . . Swarmer 3 | . 3 . . Grunt 3 | . 1 . 2 Brawler 1 | . . . 1 Best Kill Streak 4 | 4 4 . 4 Combat Bots Only 4 | . 4 . 3 Max Kills in Single Turn 1 | 1 1 . 1 Gunslinging . | . . . . Exploded . | . . . . Melee . | . . . . Uniques/NPCs Destroyed . | . . . . Combat | -11 -10 -10 -8 -------- Run | Yrd Mat Sub Mat Hostile Shots Fired 78 | . 29 . 49 Missed 26 | . 10 . 16 Hits 52 | . 19 . 33 Projectile 52 | . 19 . 33 Critical Strikes 4 | . 1 . 3 Damage Taken 716 | . 201 . 515 Core 92 | . 40 . 52 Absorbed by Shields . | . . . . Core Remaining (%) 92 | 100 . 84 . Volleys Fired 62 | 6 36 . 20 Largest 2 | 2 2 . 2 Hottest 100 | 60 60 . 100 Shots Fired 122 | 12 72 . 38 Gun 114 | 12 72 . 30 Cannon 8 | . . . 8 Launcher . | . . . . Special . | . . . . Kinetic 50 | 6 36 . 8 Thermal 20 | . . . 20 Explosive . | . . . . Electromagnetic 52 | 6 36 . 10 Robot Hit Streak 6 | 3 4 . 6 Robot Miss Streak 4 | 2 3 . 4 Penetration Max . | . . . . Secondary Targets 1 | . . . 1 Max Gunslinging Chain 1 | . . . 1 Shots Hit Robots 69 | 6 40 . 23 Core Hits 37 | 6 19 . 12 Critical Kills . | . . . . Critical Parts Destroyed 1 | . . . 1 Critical Strikes 2 | . 1 . 1 Destroy 1 | . . . 1 Corrupt 1 | . 1 . . Melee Attacks . | . . . . Impact . | . . . . Slashing . | . . . . Piercing . | . . . . Sneak Attacks . | . . . . Combat Hostiles . | . . . . Follow-up Attacks . | . . . . Damage Inflicted 1177 | 75 516 . 586 Guns 857 | 75 461 . 321 Cannons 105 | . . . 105 Explosions 212 | . 55 . 157 Melee . | . . . . Ramming 3 | . . . 3 Kinetic 333 | 24 204 . 105 Thermal 455 | . 55 . 400 Explosive . | . . . . Electromagnetic 386 | 51 257 . 78 Impact . | . . . . Slashing . | . . . . Piercing . | . . . . Highest Corruption 5 | . . . 5 Average Corruption 5 | . . . 5 Corruption Purged . | . . . . Corruption Blocked . | . . . . Effects 8 | . . . 8 Matter Fused 1 | . . . 1 Heat Flow Errors 1 | . . . 1 Energy Discharges 1 | . . . 1 Parts Rejected 1 | . . . 1 Data Loss (minor) 3 | . . . 3 Data Loss (major) 1 | . . . 1 Overload Shots . | . . . . Overflow Damage 9 | . 9 . . Projectiles . | . . . . Explosions 9 | . 9 . . Melee . | . . . . Knockbacks . | . . . . Impact . | . . . . Kinetic . | . . . . Secondary . | . . . . Self-Inflicted Damage 28 | . 28 . . Shots 1 | . 1 . . Rammed 1 | . . . 1 Targets Rammed 1 | . . . 1 Kicked . | . . . . Crushed . | . . . . Highest Temperature 272 | 20 102 . 272 Average Temperature 67 | 15 32 . 117 Received Heat Transfer 354 | . 30 . 324 Siege Activations . | . . . . Martial Activations . | . . . . Shielding Activations . | . . . . Robots Disrupted . | . . . . Combat Hostiles . | . . . . Robots Corrupted . | . . . . Combat Hostiles . | . . . . Parts Fried . | . . . . Impact Corruptions . | . . . . Robots Melted . | . . . . Combat Hostiles . | . . . . Parts Melted . | . . . . Heat Transferred 700 | . 100 . 600 Parts Sabotaged . | . . . . Parts Stolen . | . . . . Parts Stripped . | . . . . Power Chain Reactions 2 | . 1 . 1 Alert | -11 -10 -10 -8 ------- Run | Yrd Mat Sub Mat Maximum Alert Level . | . . . . Low Security (%) 100 | 100 100 . 100 Level 1 . | . . . . Level 2 . | . . . . Level 3 . | . . . . Level 4 . | . . . . Level 5 . | . . . . High Security . | . . . . Max Security . | . . . . Peak Influence 83 | 10 83 . 58 Initial . | . . . . Average 14 | 1 20 . 9 Influence Increases 267 | 20 169 . 78 Destroy 0b10 Robot/C 140 | . 80 . 60 Destroy 0b10 Robot/NC 55 | 20 30 . 5 Destroy Leader 26 | . 16 . 10 Successful Hack 12 | . 12 . . Disable Machine 30 | . 30 . . Destroy Structure 4 | . 1 . 3 Influence Decreases 249 | 20 169 . 60 Time Decay 219 | 20 169 . 30 Lost Part 30 | . . . 30 Squads Dispatched 1 | . . . 1 Investigation . | . . . . Extermination . | . . . . Reinforcement 1 | . . . 1 Assault . | . . . . Garrison . | . . . . Intercept . | . . . . Searches Triggered . | . . . . Construction Impeded 1 | . . . 1 Haulers Reinforced . | . . . . Active Scanning Responses . | . . . . Cargo Convoy Interrupts . | . . . . Stealth | -11 -10 -10 -8 --------- Run | Yrd Mat Sub Mat Distress Signals 2 | . . . 2 Communications Jammed . | . . . . Distress Signals . | . . . . Times Spotted 24 | . 15 . 9 Peak Tracking Total 4 | . 4 . 4 Tactical Retreats . | . . . . Traps | -11 -10 -10 -8 ------- Run | Yrd Mat Sub Mat Traps Triggered . | . . . . Indirectly . | . . . . Trap Hack Attempts . | . . . . Triggered . | . . . . Disarmed . | . . . . Reprogrammed . | . . . . Reused . | . . . . Traps Extracted . | . . . . Installed . | . . . . Triggered . | . . . . Machines | -11 -10 -10 -8 ---------- Run | Yrd Mat Sub Mat Machines Disabled 2 | . 2 . . Max in Single Turn 1 | . 1 . . Machines Repaired . | . . . . Machines Dismantled . | . . . . Machines Sabotaged . | . . . . Overloaded Fab Kills . | . . . . Hacking | -11 -10 -10 -8 --------- Run | Yrd Mat Sub Mat Machines Accessed 2 | . 2 . . Terminals 2 | . 2 . . Fabricators . | . . . . Repair Stations . | . . . . Recycling Units . | . . . . Scanalyzers . | . . . . Garrison Access . | . . . . Total Hacks 7 | . 7 . . Successful 3 | . 3 . . Failed 4 | . 4 . . Catastrophic . | . . . . Database Lockouts . | . . . . Manual 8 | . 8 . . Terminals 7 | . 7 . . Fabricators . | . . . . Repair Stations . | . . . . Recycling Units . | . . . . Scanalyzers . | . . . . Garrison Access . | . . . . Terminal Hacks 2 | . 2 . . Robot Analysis 2 | . 2 . . Fabricator Hacks . | . . . . Repair Station Hacks . | . . . . Recycling Unit Hacks . | . . . . Scanalyzer . | . . . . Garrison Access Hacks . | . . . . Unauthorized Hacks 1 | . 1 . . Terminals 1 | . 1 . . Operators 1 | . 1 . . Fabricators . | . . . . Repair Stations . | . . . . Recycling Units . | . . . . Scanalyzers . | . . . . Garrison Access . | . . . . Data Cores Recovered . | . . . . Used . | . . . . Hacking Detections 2 | . 2 . . Full Trace Events . | . . . . Feedback Events . | . . . . Feedback Blocked . | . . . . Robot Schematics Acquired . | . . . . Robots Built . | . . . . Authchips . | . . . . Time . | . . . . Total Robot Build Rating . | . . . . Part Schematics Acquired . | . . . . Parts Built . | . . . . Authchips . | . . . . Time . | . . . . Total Part Build Rating . | . . . . Parts Repaired . | . . . . Time . | . . . . Parts Recycled . | . . . . Recycled Matter . | . . . . Retrieved Matter . | . . . . Retrieved Components . | . . . . Parts Scanalyzed . | . . . . Part Schematics Acquired . | . . . . Parts Damaged . | . . . . Bothacking | -11 -10 -10 -8 ------------ Run | Yrd Mat Sub Mat Used RIF Installer . | . . . . Robots Hacked . | . . . . Non-combat . | . . . . Combat . | . . . . Robot Hacks Applied . | . . . . Relay Couplers Released . | . . . . Fabnet Peak Effective % . | . . . . Robots Rewired . | . . . . Allies Hacked . | . . . . Hacks Repelled . | . . . . Allies | -11 -10 -10 -8 -------- Run | Yrd Mat Sub Mat Total Allies . | . . . . Largest Group . | . . . . Highest-Rated Group . | . . . . Highest-Rated Ally . | . . . . Total Orders . | . . . . Ally Attacks . | . . . . Total Damage . | . . . . Kills . | . . . . Allies Corrupted . | . . . . Allies Melted . | . . . . Intel | -11 -10 -10 -8 ------- Run | Yrd Mat Sub Mat Active Infowar (turns) 744 | 71 651 22 . Terrain 744 | 71 651 22 . Robot Analysis Total 2 | . 2 . . Derelict Logs Recovered . | . . . . Drone Launches . | . . . . Drone Recoveries . | . . . . Exploration | -11 -10 -10 -8 ------------- Run | Yrd Mat Sub Mat Turns Passed 1078 | 163 651 41 223 Spaces Moved 406 | 81 243 16 66 Core 2 | 2 . . . Treads 404 | 79 243 16 66 Legs . | . . . . Wheels . | . . . . Hover . | . . . . Flight . | . . . . Fastest Speed 50 | 50 160 240 160 Average Speed 209 | 157 216 240 238 Slowest Speed 240 | 160 240 240 240 Overloaded Moves . | . . . . Propulsion Burnouts . | . . . . Robots Hopped . | . . . . Potential Cave-ins . | . . . . Cave-ins Triggered . | . . . . Exploration Rate (%) 13 | 4 33 2 13 Regions Visited 3 Branch Regions 1 Pre-discovered Areas . | . . . . Known Exits Taken . | . . . . Unknown Exits Taken 3 | 1 1 1 . Scrap Searched . | . . . . Spaces Dug . | . . . . Terrain Destroyed 4 | . 1 . 3 Melee . | . . . . Projectile . | . . . . AOE 4 | . 1 . 3 Terrain Rammed . | . . . . Walls Destroyed . | . . . . Machines Disabled . | . . . . Actions | -11 -10 -10 -8 --------- Run | Yrd Mat Sub Mat Total 522 | 102 307 21 92 Wait 1 | . 1 . . Move 403 | 80 242 15 66 Hop . | . . . . Pick Up 24 | 8 15 1 . Fast Attach 11 | 6 4 1 . Attach 5 | 1 . . 4 Detach 1 | . . . 1 Swap 2 | 1 1 . . Drop 12 | . 8 4 . Fire 62 | 6 36 . 20 Melee . | . . . . Ram . | . . . . Kick . | . . . . Crush 1 | . . . 1 Escape Stasis . | . . . . Rewire . | . . . . Trap . | . . . . Miscellaneous . | . . . . Route ------- -11/Scrapyard -10/Materials (discovered 2 exits: [*Mat] / [*Sub]) -10/Subcaves -8/Materials History --------- Turn | Location | Event 69 | -11/Scrapyard | Discovered new exit (range 15) 164 | -11/Scrapyard | Entered Materials 307 | -10/Materials | Build established: Mutant 372 | -10/Materials | Discovered new exit (range 12) 590 | -10/Materials | Discovered new exit (range 8) 815 | -10/Materials | Entered Subcaves 815 | -10/Subcaves | Discovered new exit (range 8) 816 | -10/Subcaves | Shifting Twisted Machinery released Sub. Laser 816 | -10/Subcaves | Approached by a straggling Scientist 856 | -10/Subcaves | Entered Materials 856 | -8/Materials | Evolved 4 slots: Propulsion x2, Utility x2 1079 | -8/Materials | Self-destructed Last Messages --------------- 01063_ U-05 Engineer lays Concrete. 01063_ K-01 Serf collects debris. 01063_ G-47 Trooper suffers critical hit (Destroy). 01063_ Destroyed Aluminum Leg. 01063_ R-06 Scavenger collects Hammer. 01064_ U-05 Engineer lays Concrete. 01067_ K-01 Serf collects debris. 01067_ U-05 Engineer lays Concrete. 01069_ U-05 Engineer builds a Wall. 01070_ Critical hit (Burn: +37). 01071_ K-01 Serf collects debris. 01072_ U-05 Engineer lays Concrete. 01073_ System corrupted: Lgt. Cannon rejected. 01073_ U-05 Engineer lays Concrete. 01074_ K-01 Serf collects debris. 01074_ U-05 Engineer builds a Door. 01077_ U-05 Engineer lays Concrete. 01077_ K-01 Serf collects debris. 01078_ Lgt. Treads destroyed. Map ----- +----------------------------------------------------+ | ?????????????????????????????????????????????????? | | ?????????????????????????????????????????????????? | | ?????????????????????????????????????????????????? | | ?????????????????????????????????????????????????? | | ?????????????????????????????????????????????????? | | ?????????????????????????????????????????????????? | | ?????????????????????????????????????????????????? | | ?????????????????????????????????????????????????? | | ?????????????????????????????????????????????????? | | ?????????????????????????????????????????????????? | | ??????????????????????????? ?????????????????????? | | ?????????????????#???????? #???????????????????? | | ??????????????? ???????? #???????????????????? | | ??????????????+ #??????? #???????????????????? | | ??????????????# #??????? #???????????????????? | | ??????????????# #??????? ???????????????????? | | ??????????????# #??????# #???????????????????? | | ??????????????# %#?????#" m#???????????????????? | | ?????????????## ########%% #???????????????????? | | ?????????????# g % g #???????????????????? | | ?????????????# g #???????????????????? | | ########?????# "" #???????????????????? | | #?????# ""r k #???????????????????? | | #?????# "T % u #???????????????????? | | ####### "" a #????=== ???????????? | | ## "" @ u#! #?????????? | | " "" + ] u!+ #?????????? | | "R"" ## = # #?????????? | | ! """ ## ############## #???????????????????? | | ## #????????????? #???????????????????? | | ##+###### #????????????? #???????????????????? | | #????????????? #???????????????????? | | #????????????? #???????????????????? | | """ """ + ?????????? t/???????????????????? | | """ """ # ??????????? #???????????????????? | | """ """ # ????????????? #???????????????????? | | ^ #? ???????????? #???????????????????? | | #? ???????????? #???????????????????? | | """ """ #??#??????????? #???????????????????? | | """ """ #??????????????? #???????????????????? | | """ """ #????????????????????????????????????? | | ?? ?? ?????????????????????????????????????? | | ????????????????????????????????????????????? | | ???????????????????????????????????????????? | | ???????????????????????????????????????????? | | ???????????????????????????????????????????? | | #####????????????????????????????????????????????? | | ?????????????????????????????????????????????????? | | ?????????????????????????????????????????????????? | | ?????????????????????????????????????????????????? | +----------------------------------------------------+ Best States ------------- Heat Dissipation 31 Energy Generation 10 Energy Capacity 250 Matter Stores 300 Matter Capacity 300 Sight Range 16 Terrain Scan Range 16 Terrain Scan Density 10 Armor Coverage 800 Evasion (%) 40 Recoil Reduction 3 Item Schematics ----------------- None Robot Schematics ------------------ None Fabricated ------------ Nothing Repaired ---------- Nothing Alien Tech Used ----------------- None Achievements -------------- None Challenges ------------ None Game ------ Seed ProjectionSuspensionAnalyzer Manual? 0 Play Time 00:12:28 Cumulative 26.6 hours Start 2025.08.17 @ 16:48:49 End 2025.08.17 @ 17:00:47 Sessions 1 Manual Loads 0 Difficulty Rogue Special Mode None Game No. 45 Rogue 45 Adventurer 0 Explorer 0 Win Type - Total 0 Types 0/0/0/0/0/0/0/0/0/0 Lore% 32 Gallery% 30 Achievement% 27 Wizard Run 0 Options --------- Layout 1 ASCII 0 Keyboard 0 Movement Numpad Keybinds 0 Fullscreen 1 Font 24/Smallcaps Map View 50x35 Zoom Use 0% Tactical HUD 1 Map Filters NONE Filters NONE Steam 1 RUN: ff4f6cd2-f4f4-4df0-ad5d-1313766cb038